bitfinex/quotes_BTCUSD_20240629
["timestamp","ask_amount","ask_price","bid_price","bid_amount"]
[1719675031948,0.509518,61090.0,61089.0,0.4229929]
[1719675032103,0.52653568,61090.0,61089.0,0.4229929]
[1719675032306,0.24725168,61090.0,61089.0,0.4229929]
[1719675033517,0.230234,61090.0,61089.0,0.4229929]
[1719675038548,0.307134,61090.0,61089.0,0.4229929]
[1719675039014,0.307134,61090.0,61089.0,0.413524]
[1719675039461,0.307134,61090.0,61089.0,0.4229929]
[1719675046947,0.507134,61090.0,61089.0,0.4229929]
[1719675047579,0.507134,61090.0,61089.0,0.2229929]
[1719675047790,0.52416002,61090.0,61089.0,0.4229929]
[1719675048222,0.507134,61090.0,61089.0,0.4229929]
[1719675048412,0.52416002,61090.0,61089.0,0.4229929]
[1719675051531,0.52415924,61090.0,61089.0,0.4229929]
[1719675054604,0.507134,61090.0,61089.0,0.4229929]
[1719675054797,0.52415924,61090.0,61089.0,0.4229929]
[1719675057081,0.52415924,61090.0,61089.0,0.2229929]
[1719675057293,0.52415924,61090.0,61089.0,0.4229929]
[1719675059102,0.52415924,61090.0,61089.0,0.4229929]
[1719675059909,0.44725924,61090.0,61089.0,0.4229929]
[1719675060113,0.52415924,61090.0,61089.0,0.4229929]
[1719675060650,0.52499924,61090.0,61089.0,0.4229929]
[1719675062950,0.52499914,61090.0,61089.0,0.4229929]
[1719675063173,0.32499914,61090.0,61089.0,0.2229929]
[1719675063580,0.307974,61090.0,61089.0,0.2229929]
[1719675064430,0.307974,61090.0,61089.0,0.21806507]
[1719675066330,0.307974,61090.0,61089.0,0.32656507]
[1719675073804,0.307974,61090.0,61089.0,0.32165689]
[1719675074354,0.307974,61090.0,61089.0,0.12165689]
[1719675074580,0.307974,61090.0,61089.0,0.32165689]
[1719675081799,0.231074,61090.0,61089.0,0.2303929]
[1719675082004,0.307974,61090.0,61089.0,0.4338929]
[1719675088246,0.07774,61090.0,61089.0,0.4338929]
[1719675088438,0.307974,61090.0,61089.0,0.4338929]
[1719675090358,0.307974,61090.0,61089.0,0.59623188]
[1719675090359,0.00084,61090.0,61089.0,0.59623188]
[1719675090561,0.00084,61090.0,61089.0,0.71923188]
[1719675090763,0.00084,61090.0,61089.0,0.72923188]
[1719675091181,0.00084,61090.0,61089.0,0.69923188]
[1719675091798,0.00084,61090.0,61089.0,0.71923188]
[1719675092417,0.00084,61090.0,61089.0,0.72323188]
[1719675092833,0.00084,61090.0,61089.0,0.72623188]
[1719675093034,0.00084,61090.0,61089.0,0.72223188]
[1719675093235,0.00084,61090.0,61089.0,0.71923188]
[1719675093930,0.00084,61090.0,61089.0,0.72523188]
[1719675094590,0.00084,61090.0,61089.0,0.73023188]
[1719675094941,0.00084,61090.0,61089.0,0.72523188]
[1719675095352,0.00084,61090.0,61089.0,0.73123188]
[1719675097323,0.00084,61090.0,61089.0,0.72523188]
[1719675097537,0.00084,61090.0,61089.0,0.73223188]
[1719675098152,0.00084,61090.0,61089.0,0.72623188]
[1719675098358,0.00084,61090.0,61089.0,0.73223188]
[1719675105521,0.07774,61090.0,61089.0,0.73223188]
[1719675105664,0.045,61101.0,61089.0,0.73223188]
[1719675105665,0.27217394,61119.0,61098.0,0.02]
[1719675105886,0.48811044,61105.0,61102.0,0.08130346]
[1719675106092,0.0769,61103.0,61102.0,0.08130346]
[1719675106265,0.307134,61103.0,61102.0,0.08130346]
[1719675106915,0.307134,61103.0,61098.0,0.02]
[1719675107089,0.0769,61099.0,61098.0,0.02]
[1719675107299,0.307134,61099.0,61098.0,0.02]
[1719675108381,0.307134,61099.0,61098.0,0.021]
[1719675108715,0.307134,61099.0,61098.0,0.221]
[1719675108918,0.307134,61099.0,61098.0,0.22]
[1719675109511,0.307134,61099.0,61098.0,0.23026114]
[1719675116886,0.30705707,61099.0,61098.0,0.23026114]
[1719675117585,0.07682307,61099.0,61098.0,0.23026114]
[1719675117789,0.30705707,61099.0,61098.0,0.23026114]
[1719675119407,0.35424585,61099.0,61098.0,0.23026114]
[1719675122419,0.27742278,61099.0,61098.0,0.23026114]
[1719675122799,0.35432278,61099.0,61098.0,0.23026114]
[1719675122996,0.35432278,61099.0,61098.0,0.21026114]
[1719675123301,0.35432278,61099.0,61098.0,0.23026114]
[1719675123498,0.35432278,61099.0,61098.0,0.21026114]
[1719675124426,0.27742278,61099.0,61098.0,0.21026114]
[1719675124685,0.35432278,61099.0,61098.0,0.23026114]
[1719675126070,0.35432278,61099.0,61098.0,0.03026114]
[1719675126264,0.35432278,61099.0,61098.0,0.23026114]
[1719675126465,0.27742278,61099.0,61098.0,0.21026114]
[1719675126673,0.27742278,61099.0,61098.0,0.23026114]
[1719675126674,0.35432278,61099.0,61098.0,0.23026114]
[1719675128018,0.35432278,61099.0,61098.0,0.34036114]
[1719675128419,0.27742278,61099.0,61098.0,0.34036114]
[1719675128670,0.04718878,61099.0,61098.0,0.43206114]
[1719675128797,0.04718878,61099.0,61098.0,0.41206114]
[1719675128798,0.0769,61099.0,61098.0,0.41206114]
[1719675129387,0.0769,61099.0,61098.0,0.43206114]
[1719675129586,0.0769,61099.0,61098.0,0.43298514]
[1719675129989,0.07670308,61099.0,61098.0,0.43298514]
[1719675130484,0.08844098,61111.0,61100.0,0.2018]
[1719675130705,0.230234,61110.0,61106.0,0.02]
[1719675130912,0.0769,61107.0,61106.0,0.02]
[1719675131127,0.307134,61107.0,61106.0,0.02]
[1719675131335,0.307134,61107.0,61106.0,0.03023838]
[1719675131930,0.307134,61107.0,61106.0,0.03123838]
[1719675132338,0.307134,61107.0,61106.0,0.03023838]
[1719675132541,0.307134,61107.0,61106.0,0.03123838]
[1719675133024,0.307134,61107.0,61106.0,0.03023838]
[1719675133403,0.0769,61107.0,61106.0,0.03023838]
[1719675133786,0.0769,61107.0,61106.0,0.03123838]
[1719675134194,0.307134,61107.0,61106.0,0.03223838]
[1719675134544,0.230234,61107.0,61106.0,0.34243838]
[1719675134747,0.230234,61110.0,61109.0,0.02]
[1719675134878,0.307134,61110.0,61109.0,0.02]
[1719675135248,0.307134,61110.0,61109.0,0.03019525]
[1719675136185,0.307134,61110.0,61109.0,0.03119525]
[1719675136390,0.230234,61110.0,61109.0,0.03119525]
[1719675136600,0.230234,61114.0,61109.0,0.03119525]
[1719675136810,0.0769,61110.0,61109.0,0.03119525]
[1719675137016,0.307134,61110.0,61109.0,0.03119525]
[1719675137345,0.307134,61110.0,61109.0,0.23879525]
[1719675138013,0.307134,61110.0,61109.0,0.23779525]
[1719675140541,0.307134,61110.0,61109.0,0.21779525]
[1719675140994,0.230234,61110.0,61109.0,0.21779525]
[1719675141195,0.0769,61110.0,61109.0,0.21779525]
[1719675141399,0.307134,61110.0,61109.0,0.21779525]
[1719675141601,0.0769,61110.0,61109.0,0.21779525]
[1719675142395,0.230234,61110.0,61109.0,0.21779525]
[1719675142574,0.230234,61115.0,61109.0,0.21779525]
[1719675142785,0.0769,61110.0,61109.0,0.21779525]
[1719675143004,0.307134,61110.0,61109.0,0.21779525]
[1719675143685,0.230234,61110.0,61109.0,0.21779525]
[1719675143910,0.0769,61110.0,61109.0,0.21879525]
[1719675144271,0.0769,61110.0,61109.0,0.23879525]
[1719675144386,0.230234,61110.0,61109.0,0.21879525]
[1719675144639,0.230234,61115.0,61113.0,0.02]
[1719675144869,0.0171,61116.0,61113.0,0.02]
[1719675144870,0.0769,61114.0,61113.0,0.02]
[1719675145348,0.307134,61114.0,61113.0,0.02]
[1719675145825,0.230234,61114.0,61113.0,0.04276]
[1719675146070,0.0769,61114.0,61113.0,0.04376]
[1719675146309,0.307134,61114.0,61113.0,0.022]
[1719675146531,0.230234,61114.0,61113.0,0.022]
[1719675146756,0.0769,61114.0,61113.0,0.002]
[1719675146966,0.307134,61114.0,61113.0,0.002]
[1719675148276,0.1,61114.0,61113.0,0.002]
[1719675148613,0.1,61114.0,61113.0,0.01218387]
[1719675148815,0.1769,61114.0,61113.0,0.002]
[1719675152568,0.1,61114.0,61113.0,0.002]
[1719675152761,0.0769,61114.0,61113.0,0.002]
[1719675152975,0.1769,61114.0,61113.0,0.002]
[1719675154453,0.1,61114.0,61113.0,0.002]
[1719675154652,0.0769,61114.0,61113.0,0.002]
[1719675154969,0.1769,61114.0,61113.0,0.002]
[1719675162916,0.06970305,61114.0,61113.0,0.002]
[1719675163082,0.90255305,61114.0,61113.0,0.002]
[1719675163847,0.98517161,61114.0,61113.0,0.002]
[1719675165400,0.91546856,61114.0,61113.0,0.002]
[1719675165618,0.99236856,61114.0,61113.0,0.002]
[1719675165857,0.97535,61114.0,61113.0,0.002]
[1719675166163,0.99236826,61114.0,61113.0,0.002]
[1719675166296,0.97535,61114.0,61113.0,0.002]
[1719675166510,0.99236825,61114.0,61113.0,0.002]
[1719675168813,0.99236825,61114.0,61113.0,0.2086]
[1719675169021,0.73708225,61114.0,61113.0,0.2086]
[1719675170053,0.66018225,61114.0,61113.0,0.2086]
[1719675170222,0.73708225,61114.0,61113.0,0.2086]
[1719675171566,0.65223225,61114.0,61113.0,0.2086]
[1719675172326,0.635214,61114.0,61113.0,0.2086]
[1719675172528,0.65223225,61114.0,61113.0,0.2086]
[1719675176570,0.73913625,61114.0,61113.0,0.2086]
[1719675177407,0.67353625,61114.0,61113.0,0.2086]
[1719675178452,0.26599825,61114.0,61113.0,0.2286]
[1719675178669,0.26599825,61114.0,61113.0,0.2086]
[1719675178881,0.24898,61114.0,61113.0,0.2086]
[1719675182741,0.04806392,61119.0,61118.0,0.02]
[1719675182951,0.12496392,61119.0,61118.0,0.2139]
[1719675183583,0.66155992,61119.0,61118.0,0.2139]
[1719675184116,0.67857813,61119.0,61118.0,0.2139]
[1719675184237,0.66155992,61119.0,61118.0,0.2149]
[1719675184441,0.67857672,61119.0,61118.0,0.2149]
[1719675184702,0.67857672,61119.0,61118.0,0.2159]
[1719675184842,0.59955672,61119.0,61118.0,0.2159]
[1719675185260,0.59955672,61119.0,61118.0,0.2149]
[1719675185696,0.59955672,61119.0,61118.0,0.22495121]
[1719675186111,0.59955672,61119.0,61118.0,0.22595121]
[1719675186326,0.59955672,61119.0,61118.0,0.22495121]
[1719675186540,0.59955672,61119.0,61118.0,0.22395121]
[1719675186541,0.06508072,61119.0,61118.0,0.22395121]
[1719675186694,0.14198072,61119.0,61118.0,0.22395121]
[1719675187107,0.12496392,61119.0,61118.0,0.22395121]
[1719675188447,0.12496392,61119.0,61118.0,0.20395121]
[1719675189266,0.12496392,61119.0,61118.0,0.22395121]
[1719675189703,0.12496392,61119.0,61118.0,0.20395121]
[1719675191046,0.04806392,61119.0,61118.0,0.42395121]
[1719675191244,0.12496392,61119.0,61118.0,0.40395121]
[1719675191378,0.12496392,61119.0,61118.0,0.42395121]
[1719675195135,0.04806392,61119.0,61118.0,0.42395121]
[1719675195493,0.00084,61119.0,61118.0,0.59629019]
[1719675195664,0.00084,61119.0,61118.0,0.58629019]
[1719675196143,0.00084,61119.0,61118.0,0.40395121]
[1719675197386,0.00084,61119.0,61118.0,0.21005121]
[1719675197580,1.311878,61119.0,61118.0,0.21005121]
[1719675197922,1.318478,61119.0,61118.0,0.21005121]
[1719675198119,1.33549544,61119.0,61118.0,0.2]
[1719675200009,1.318478,61119.0,61118.0,0.2]
[1719675200223,1.33549531,61119.0,61118.0,0.2]
[1719675201533,1.48262948,61119.0,61118.0,0.2]
[1719675201707,1.33549531,61119.0,61118.0,0.2]
[1719675202883,1.318478,61119.0,61118.0,0.2]
[1719675203090,1.33549538,61119.0,61118.0,0.2]
[1719675203719,0.62580938,61119.0,61118.0,0.2]
[1719675203929,0.59030938,61119.0,61118.0,0.21005121]
[1719675206394,0.573292,61119.0,61118.0,0.21005121]
[1719675206579,0.59030938,61119.0,61118.0,0.21005121]
[1719675209573,0.3380607,61119.0,61118.0,0.21005121]
[1719675209784,0.4149607,61119.0,61118.0,0.21005121]
[1719675210860,0.39794332,61119.0,61118.0,0.21005121]
[1719675221041,0.39794332,61119.0,61118.0,0.01005121]
[1719675221189,0.39794332,61119.0,61118.0,0.21005121]
[1719675234708,0.39794332,61119.0,61118.0,0.20984781]
[1719675234927,0.0769,61119.0,61118.0,0.20984781]
[1719675235662,2.152422,61119.0,61118.0,0.20984781]
[1719675235815,2.152422,61119.0,61116.0,0.0841]
[1719675235816,2.16944033,61119.0,61116.0,0.2]
[1719675236034,2.16944033,61119.0,61114.0,0.000924]
[1719675236035,0.09391833,61119.0,61118.0,0.2103889]
[1719675236220,0.09391833,61119.0,61118.0,0.2]
[1719675236446,0.09391833,61119.0,61118.0,0.2103889]
[1719675237262,0.0769,61119.0,61118.0,0.2103889]
[1719675237477,0.0769,61119.0,61118.0,0.2]
[1719675237762,4.903569,61119.0,61118.0,0.2]
[1719675237991,5.06590271,61119.0,61118.0,0.201]
[1719675238464,5.08292104,61119.0,61118.0,0.201]
[1719675238896,5.08292292,61119.0,61118.0,0.201]
[1719675239250,4.69656192,61119.0,61118.0,0.202]
[1719675239926,4.45599092,61119.0,61118.0,0.202]
[1719675241296,4.43897071,61119.0,61118.0,0.202]
[1719675241614,4.45599088,61119.0,61118.0,0.202]
[1719675242154,4.45599088,61119.0,61114.0,0.000924]
[1719675242155,4.45599615,61119.0,61114.0,0.000924]
[1719675242457,0.0769,61115.0,61114.0,0.200924]
[1719675242607,4.903569,61115.0,61114.0,0.200924]
[1719675242807,4.92058917,61115.0,61114.0,0.200924]
[1719675244014,4.92058917,61115.0,61114.0,0.201924]
[1719675244281,4.92058917,61115.0,61114.0,0.202924]
[1719675244483,5.05033567,61115.0,61114.0,0.201924]
[1719675244758,5.05233567,61115.0,61114.0,0.201924]
[1719675245168,5.06433567,61115.0,61114.0,0.202924]
[1719675245507,5.06433568,61115.0,61114.0,0.202924]
[1719675245879,5.06433568,61115.0,61114.0,0.002924]
[1719675246525,4.6557276,61115.0,61114.0,0.002924]
[1719675247093,4.7342396,61115.0,61114.0,0.002924]
[1719675247635,4.73423962,61115.0,61114.0,0.002924]
[1719675250769,4.717219,61115.0,61114.0,0.002924]
[1719675251229,4.73423956,61115.0,61114.0,0.002924]
[1719675253268,4.71624556,61115.0,61114.0,0.002924]
[1719675253910,4.69893956,61115.0,61114.0,0.002924]
[1719675255916,4.69893956,61115.0,61114.0,0.002878]
[1719675256324,4.74201503,61115.0,61114.0,0.002878]
[1719675259071,4.90435401,61115.0,61114.0,0.002878]
[1719675259274,4.90435404,61115.0,61114.0,0.002878]
[1719675262905,4.62087157,61115.0,61114.0,0.002878]
[1719675263829,4.60385098,61115.0,61114.0,0.002878]
[1719675263999,4.62087157,61115.0,61114.0,0.002878]
[1719675266405,4.69777157,61115.0,61114.0,0.002878]
[1719675267025,4.68075098,61115.0,61114.0,0.002878]
[1719675267240,4.69777205,61115.0,61114.0,0.002878]
[1719675270177,4.68075098,61115.0,61114.0,0.002878]
[1719675270367,4.69777206,61115.0,61114.0,0.002878]
[1719675271737,4.86010577,61115.0,61114.0,0.002878]
[1719675273622,4.69777206,61115.0,61114.0,0.002878]
[1719675273853,4.69777206,61115.0,61114.0,0.115778]
[1719675275250,4.69777206,61115.0,61114.0,0.11572338]
[1719675275664,0.29933553,61115.0,61114.0,0.11572338]
[1719675276108,0.29933553,61115.0,61114.0,0.12612479]
[1719675276313,4.93342253,61115.0,61114.0,0.12612479]
[1719675276492,4.93342253,61115.0,61114.0,0.11572338]
[1719675276695,4.91640145,61115.0,61114.0,0.11572338]
[1719675276908,4.93342249,61115.0,61114.0,0.11572338]
[1719675277308,4.93342248,61115.0,61114.0,0.11572338]
[1719675277938,4.93342248,61115.0,61114.0,0.00282338]
[1719675279426,4.93342262,61115.0,61114.0,0.00282338]
[1719675279673,5.13342262,61115.0,61107.0,0.2055]
[1719675279848,0.0769,61108.0,61107.0,0.2055]
[1719675280055,4.319958,61108.0,61107.0,0.2055]
[1719675280255,4.278978,61108.0,61107.0,0.2055]
[1719675280459,4.191384,61108.0,61107.0,0.2055]
[1719675281296,4.191384,61108.0,61107.0,0.2065]
[1719675281499,4.20840597,61108.0,61107.0,0.2065]
[1719675281843,4.21840597,61108.0,61107.0,0.2075]
[1719675283145,4.21840597,61108.0,61107.0,0.2065]
[1719675283146,4.201384,61108.0,61107.0,0.2065]
[1719675283386,4.23040619,61108.0,61107.0,0.2075]
[1719675284045,4.213384,61108.0,61107.0,0.002]
[1719675284254,4.3927399,61108.0,61107.0,0.1149]
[1719675284462,4.3927399,61108.0,61107.0,0.2075]
[1719675286590,4.40976209,61108.0,61107.0,0.2075]
[1719675290051,4.40976275,61108.0,61107.0,0.2075]
[1719675292946,4.40976262,61108.0,61107.0,0.2075]
[1719675293155,4.40976262,61108.0,61107.0,0.20743726]
[1719675293885,4.4525496,61108.0,61107.0,0.20743726]
[1719675294070,4.29021589,61108.0,61107.0,0.20743726]
[1719675294270,4.02838389,61108.0,61107.0,0.20743726]
[1719675294686,4.05856892,61108.0,61107.0,0.20743726]
[1719675296181,4.0415462,61108.0,61107.0,0.20743726]
[1719675296412,4.05856885,61108.0,61107.0,0.20743726]
[1719675296606,4.18941074,61108.0,61107.0,0.20743726]
[1719675298465,4.17238855,61108.0,61107.0,0.20743726]
[1719675300859,4.17322875,61108.0,61107.0,0.20836126]
[1719675302416,0.32057675,61108.0,61107.0,0.20836126]
[1719675302682,0.18973486,61108.0,61107.0,0.20836126]
[1719675302844,4.82382186,61108.0,61107.0,0.20836126]
[1719675303047,0.18973486,61108.0,61107.0,0.20836126]
[1719675303934,0.17271201,61108.0,61107.0,0.20836126]
[1719675304123,4.66269301,61108.0,61107.0,0.20836126]
[1719675304611,4.80278724,61108.0,61107.0,0.20836126]
[1719675305316,4.8077441,61108.0,61107.0,0.20836126]
[1719675307726,4.7312291,61108.0,61107.0,0.20836126]
[1719675307931,4.7312291,61108.0,61107.0,0.20831192]
[1719675309080,4.89356808,61108.0,61107.0,0.00281192]
[1719675309299,4.89356808,61108.0,61096.0,0.2056]
[1719675309300,0.2,61103.0,61096.0,0.2056]
[1719675309507,4.89356808,61108.0,61089.0,0.08499655]
[1719675309508,5.08302598,61102.0,61091.0,0.08407255]
[1719675309722,0.0769,61092.0,61090.0,0.08407255]
[1719675309922,2.264584,61091.0,61090.0,0.08407255]
[1719675310933,2.28160686,61091.0,61090.0,0.08407255]
[1719675311367,2.264584,61091.0,61090.0,0.08407255]
[1719675311569,1.94623594,61091.0,61090.0,0.08407255]
[1719675312155,1.95723594,61091.0,61090.0,0.08407255]
[1719675312610,1.95723594,61091.0,61090.0,0.28267255]
[1719675312814,2.11956965,61091.0,61090.0,0.28267255]
[1719675313018,2.13156965,61091.0,61090.0,0.28267255]
[1719675313280,1.96923594,61091.0,61090.0,0.28267255]
[1719675314530,0.96158731,61091.0,61090.0,0.28267255]
[1719675314736,0.79388131,61091.0,61090.0,0.28267255]
[1719675314945,0.77186131,61091.0,61090.0,0.28267255]
[1719675315197,0.77186131,61091.0,61090.0,0.29314908]
[1719675317005,0.48076731,61091.0,61090.0,0.20907653]
[1719675317328,0.496043,61091.0,61090.0,0.31314908]
[1719675317528,0.496043,61091.0,61090.0,0.29314908]
[1719675317649,0.496043,61091.0,61090.0,0.31314908]
[1719675319065,0.023,61091.0,61090.0,0.29314908]
[1719675319264,0.0999,61091.0,61090.0,0.31642257]
[1719675319469,0.023,61091.0,61090.0,0.47876134]
[1719675319637,0.012,61091.0,61090.0,0.48876134]
[1719675319939,0.0769,61092.0,61091.0,0.2186]
[1719675320172,0.0769,61092.0,61091.0,0.46551569]
[1719675320343,0.0769,61092.0,61091.0,0.47594599]
[1719675321882,0.0769,61092.0,61091.0,0.45594599]
[1719675322083,0.0769,61092.0,61091.0,0.57001854]
[1719675322242,0.0769,61092.0,61091.0,0.10407255]
[1719675322444,0.0769,61092.0,61091.0,0.00990878]
[1719675322652,0.0779,61092.0,61090.0,0.003]
[1719675323107,0.0769,61092.0,61089.0,0.000924]
[1719675323515,0.0839,61092.0,61091.0,0.003]
[1719675323727,0.0779,61092.0,61089.0,0.000924]
[1719675324101,0.0779,61092.0,61090.0,0.00894565]
[1719675324721,0.0779,61092.0,61084.0,0.023]
[1719675324995,0.0779,61092.0,61091.0,0.00943915]
[1719675325200,0.0809,61092.0,61086.0,0.1]
[1719675325382,0.0809,61092.0,61087.0,0.16233898]
[1719675325513,0.0809,61092.0,61091.0,0.00943915]
[1719675325514,0.0849,61092.0,61091.0,0.00943915]
[1719675325710,0.0849,61092.0,61089.0,0.08130346]
[1719675325984,0.0769,61092.0,61091.0,0.00943915]
[1719675326193,0.0809,61092.0,61090.0,0.00944263]
[1719675326327,0.0809,61092.0,61089.0,0.08130346]
[1719675326328,0.0849,61092.0,61091.0,0.00943915]
[1719675326527,0.0809,61092.0,61091.0,0.00943915]
[1719675326751,0.0769,61092.0,61089.0,0.08130346]
[1719675326962,0.0809,61092.0,61091.0,0.00943915]
[1719675327162,0.0809,61092.0,61090.0,0.00944263]
[1719675327360,0.00184879,61103.0,61091.0,0.00943915]
[1719675327567,3.510868,61102.0,61092.0,0.2046]
[1719675327763,0.0769,61093.0,61091.0,0.00943915]
[1719675328022,0.0769,61093.0,61089.0,0.08130346]
[1719675328161,0.01702451,61101.0,61092.0,0.00943567]
[1719675328364,0.0769,61093.0,61089.0,0.08130346]
[1719675328615,0.0769,61090.0,61089.0,0.08130346]
[1719675330553,0.0789,61090.0,61089.0,0.08130346]
[1719675330874,0.0789,61090.0,61089.0,0.28590346]
[1719675331071,0.0789,61090.0,61089.0,0.38590346]
[1719675331489,0.0789,61090.0,61089.0,0.39642091]
[1719675331935,0.002,61090.0,61089.0,0.55875989]
[1719675332137,0.0799,61090.0,61089.0,0.55875989]
[1719675332337,0.0799,61090.0,61089.0,0.57875989]
[1719675332590,0.0799,61090.0,61089.0,0.57968389]
[1719675332794,0.03985122,61103.0,61097.0,0.2017]
[1719675332939,0.333737,61102.0,61098.0,0.0897]
[1719675333118,0.333737,61102.0,61099.0,0.112]
[1719675333337,0.543896,61107.0,61099.0,0.112]
[1719675333687,0.0769,61100.0,61099.0,0.112]
[1719675333852,0.0769,61100.0,61099.0,0.2017]
[1719675335083,0.0769,61100.0,61099.0,0.21219074]
[1719675337279,0.0799,61100.0,61099.0,0.21219074]
[1719675338965,0.0829,61100.0,61099.0,0.21219074]
[1719675344667,0.0769,61100.0,61099.0,0.21219074]
[1719675345051,0.0799,61100.0,61099.0,0.21219074]
[1719675346031,0.0829,61100.0,61099.0,0.21219074]
[1719675347900,0.12219719,61100.0,61099.0,0.21219074]
[1719675349165,0.11919719,61100.0,61099.0,0.21219074]
[1719675350351,0.12219719,61100.0,61099.0,0.21219074]
[1719675357350,0.12219719,61100.0,61099.0,0.12249074]
[1719675357548,0.12219719,61100.0,61099.0,0.01049074]
[1719675357960,0.12219719,61100.0,61097.0,0.1115]
[1719675358210,0.12219719,61100.0,61099.0,0.01048907]
[1719675359149,0.12219719,61100.0,61097.0,0.1115]
[1719675359385,0.12219719,61100.0,61099.0,0.01048907]
[1719675359585,0.11919719,61100.0,61099.0,0.01048907]
[1719675359806,0.11919719,61100.0,61097.0,0.1115]
[1719675360024,0.11919719,61100.0,61099.0,0.01048907]
[1719675360025,0.12219719,61100.0,61099.0,0.01048907]
[1719675360226,0.12219719,61100.0,61097.0,0.1115]
[1719675360227,0.12219719,61100.0,61098.0,0.01049174]
[1719675360437,0.11919719,61100.0,61099.0,0.01048907]
[1719675360793,0.11919719,61100.0,61097.0,0.1115]
[1719675361011,0.11919719,61100.0,61099.0,0.01048907]
[1719675361211,0.11919719,61100.0,61098.0,0.01049174]
[1719675361415,0.11619719,61100.0,61099.0,0.01048907]
[1719675361828,0.11919719,61100.0,61097.0,0.1115]
[1719675362024,0.11919719,61100.0,61099.0,0.01048907]
[1719675362230,0.11919719,61100.0,61098.0,0.01049174]
[1719675362847,0.12219719,61100.0,61098.0,0.01049174]
[1719675363049,0.11619719,61100.0,61098.0,0.01049174]
[1719675363248,0.11919719,61100.0,61098.0,0.01049174]
[1719675363449,0.12219719,61100.0,61098.0,0.01049174]
[1719675363674,0.04529719,61100.0,61099.0,0.00327326]
[1719675363806,0.12219719,61100.0,61099.0,0.20637326]
[1719675364013,0.12219719,61100.0,61099.0,0.21686233]
[1719675364421,0.11919719,61100.0,61099.0,0.21686233]
[1719675364627,0.11619719,61100.0,61099.0,0.21358907]
[1719675372035,0.11619719,61100.0,61099.0,0.01048907]
[1719675372447,0.11619719,61100.0,61097.0,0.2028]
[1719675374244,0.19589,61099.0,61090.0,0.2028]
[1719675374444,0.0769,61093.0,61091.0,0.1]
[1719675374651,0.1717,61093.0,61091.0,0.1]
[1719675375458,0.1717,61093.0,61089.0,0.000924]
[1719675375659,0.0769,61090.0,61089.0,0.000924]
[1719675376018,0.0769,61090.0,61089.0,0.01143979]
[1719675376219,0.0769,61090.0,61089.0,0.000924]
[1719675376424,0.0769,61090.0,61089.0,0.01143979]
[1719675376622,0.0769,61090.0,61089.0,0.000924]
[1719675376891,0.0769,61090.0,61089.0,0.01143979]
[1719675377097,0.0769,61090.0,61089.0,0.000924]
[1719675377296,0.0769,61090.0,61089.0,0.01143979]
[1719675377507,0.0769,61090.0,61089.0,0.000924]
[1719675377710,0.0769,61090.0,61089.0,0.01143979]
[1719675377907,0.0769,61090.0,61089.0,0.000924]
[1719675378324,0.0779,61090.0,61089.0,0.000924]
[1719675378478,0.0779,61090.0,61089.0,0.01143979]
[1719675378691,0.0779,61090.0,61089.0,0.000924]
[1719675379096,0.0799,61090.0,61089.0,0.000924]
[1719675379580,0.0789,61090.0,61089.0,0.000924]
[1719675379785,0.0769,61090.0,61089.0,0.01143979]
[1719675381885,0.1978,61090.0,61089.0,0.01143979]
[1719675382073,2.56407,61090.0,61089.0,0.01143979]
[1719675382248,2.79568072,61090.0,61089.0,0.01143979]
[1719675382447,2.79568072,61090.0,61089.0,0.000924]
[1719675383046,2.79868072,61090.0,61089.0,0.000924]
[1719675383716,2.80168072,61090.0,61089.0,0.000924]
[1719675383922,2.80167811,61090.0,61089.0,0.000924]
[1719675384072,2.64150711,61090.0,61089.0,0.000924]
[1719675385629,2.62170511,61090.0,61089.0,0.000924]
[1719675386340,2.6708501,61090.0,61089.0,0.000924]
[1719675386976,1.2744101,61090.0,61089.0,0.000924]
[1719675387165,1.03879793,61090.0,61089.0,0.000924]
[1719675388499,1.02178599,61090.0,61089.0,0.000924]
[1719675390062,0.92808599,61090.0,61089.0,0.000924]
[1719675395551,0.75300499,61090.0,61089.0,0.000924]
[1719675395751,0.53763099,61090.0,61089.0,0.000924]
[1719675395896,0.50428799,61090.0,61089.0,0.000924]
[1719675398393,0.50428799,61090.0,61089.0,0.126924]
[1719675398394,0.05514499,61090.0,61089.0,0.126924]
[1719675398569,0.13204499,61090.0,61089.0,0.225824]
[1719675398775,0.05514499,61090.0,61089.0,0.225824]
[1719675399002,0.13204499,61090.0,61089.0,0.225824]
[1719675399786,0.12904499,61090.0,61089.0,0.225824]
[1719675400546,0.12604499,61090.0,61089.0,0.225824]
[1719675400819,0.2212,61106.0,61089.0,0.2925367]
[1719675401003,2.74736944,61105.0,61091.0,0.2249]
[1719675401227,2.52396348,61104.0,61092.0,0.00327331]
[1719675401400,0.0769,61093.0,61092.0,0.00327331]
[1719675401597,0.0769,61093.0,61091.0,0.2249]
[1719675404665,0.0779,61093.0,61091.0,0.2249]
[1719675406216,0.0769,61092.0,61091.0,0.22817342]
[1719675407391,0.0779,61092.0,61091.0,0.22817342]
[1719675409527,0.0789,61092.0,61091.0,0.22817342]
[1719675410470,0.0789,61092.0,61091.0,0.2249]
[1719675411056,0.0789,61092.0,61091.0,0.22817347]
[1719675411678,0.0789,61092.0,61091.0,0.2249]
[1719675413381,0.002,61092.0,61091.0,0.49051239]
[1719675413668,0.0789,61092.0,61091.0,0.51051239]
[1719675414291,0.0769,61092.0,61091.0,0.51051239]
[1719675414489,0.0779,61092.0,61091.0,0.49051239]
[1719675414695,0.0779,61092.0,61091.0,0.53351239]
[1719675414900,0.04113964,61106.0,61098.0,0.1178]
[1719675415188,0.0769,61099.0,61098.0,0.1210731]
[1719675415400,0.0769,61099.0,61098.0,0.1178]
[1719675416660,0.0799,61099.0,61098.0,0.1178]
[1719675417672,0.0829,61099.0,61098.0,0.1178]
[1719675418001,0.0799,61099.0,61098.0,0.1378]
[1719675418116,0.0799,61099.0,61098.0,0.1178]
[1719675418983,0.0769,61099.0,61098.0,0.1178]
[1719675419834,0.0769,61099.0,61098.0,0.19910346]
[1719675423410,0.0769,61099.0,61098.0,0.21910346]
[1719675423624,0.0769,61099.0,61098.0,0.19910346]
[1719675425907,0.08927502,61106.0,61098.0,0.19910346]
[1719675426110,0.0769,61099.0,61098.0,0.19910346]
[1719675426333,0.08927502,61106.0,61098.0,0.19910346]